bitfinex/quotes_BTCUSD_20230118
["timestamp","ask_amount","ask_price","bid_price","bid_amount"]
[1674012140077,1.90296596,21356.0,21355.0,0.01586085]
[1674012141099,2.59797832,21356.0,21355.0,0.01586085]
[1674012141348,3.03171084,21356.0,21355.0,0.01586085]
[1674012141600,2.74891604,21356.0,21355.0,0.01586085]
[1674012142141,2.46840737,21356.0,21355.0,0.01586085]
[1674012142434,2.52451236,21356.0,21355.0,0.01586085]
[1674012146746,3.07591405,21356.0,21355.0,0.01586085]
[1674012147054,3.26365738,21356.0,21355.0,0.01586085]
[1674012147781,3.67789149,21356.0,21355.0,0.01586085]
[1674012147782,3.67789149,21356.0,21323.0,2.06834489]
[1674012148063,0.26215711,21352.0,21347.0,0.19543374]
[1674012148357,1.558256,21351.0,21347.0,0.00470779]
[1674012148618,0.936746,21351.0,21347.0,0.00470779]
[1674012148894,0.74638045,21350.0,21347.0,0.00470779]
[1674012149160,0.936812,21349.0,21347.0,0.00470779]
[1674012149684,0.468406,21349.0,21347.0,0.00470779]
[1674012150559,0.038,21349.0,21347.0,0.00470779]
[1674012151354,0.89326945,21350.0,21347.0,0.00470779]
[1674012151651,0.009,21349.0,21347.0,0.00470779]
[1674012151906,0.627409,21349.0,21347.0,0.00470779]
[1674012152165,0.618409,21349.0,21347.0,0.00470779]
[1674012152424,0.468409,21349.0,21347.0,0.00470779]
[1674012153180,0.618409,21349.0,21347.0,0.00470779]
[1674012153182,0.84863106,21349.0,21347.0,0.00470779]
[1674012153702,0.474409,21349.0,21347.0,0.00470779]
[1674012154241,0.006,21349.0,21347.0,0.00470779]
[1674012154757,0.89327145,21350.0,21347.0,0.00470779]
[1674012155031,0.09,21349.0,21347.0,0.00470779]
[1674012155289,0.89327145,21350.0,21347.0,0.00470779]
[1674012155587,0.038,21349.0,21347.0,0.00470779]
[1674012155846,0.89327145,21350.0,21347.0,0.00470779]
[1674012156108,0.98427145,21350.0,21347.0,0.00470779]
[1674012157141,0.89327145,21350.0,21347.0,0.00470779]
[1674012157655,0.93127145,21350.0,21347.0,0.00470779]
[1674012159237,1.64449537,21350.0,21347.0,0.00470779]
[1674012160088,0.47151,21349.0,21347.0,0.00470779]
[1674012160340,0.618412,21349.0,21347.0,0.00470779]
[1674012161169,0.32151,21348.0,21347.0,0.00470779]
[1674012161434,1.086818,21349.0,21347.0,0.00470779]
[1674012161934,0.558412,21349.0,21347.0,0.00470779]
[1674012162202,0.468412,21349.0,21347.0,0.00470779]
[1674012162721,0.618412,21349.0,21347.0,0.00470779]
[1674012163719,0.709412,21349.0,21347.0,0.00470779]
[1674012163721,0.618412,21349.0,21347.0,0.00470779]
[1674012163978,0.559412,21349.0,21347.0,0.00470779]
[1674012165797,0.45934331,21348.0,21347.0,0.00470779]
[1674012166062,1.24928031,21348.0,21347.0,0.00470779]
[1674012166311,1.07777031,21348.0,21347.0,0.00470779]
[1674012166822,1.16877031,21348.0,21347.0,0.00470779]
[1674012167078,1.54619731,21348.0,21347.0,0.00470779]
[1674012167383,2.55481118,21348.0,21347.0,0.00470779]
[1674012167594,2.57596829,21348.0,21347.0,0.00470779]
[1674012168134,2.46381118,21348.0,21347.0,0.00470779]
[1674012168695,2.47231118,21348.0,21347.0,0.00470779]
[1674012168945,2.73896142,21348.0,21347.0,0.00470779]
[1674012169458,2.73896142,21348.0,21347.0,0.00463424]
[1674012169695,2.90719709,21348.0,21347.0,0.00463424]
[1674012170003,2.79503998,21348.0,21347.0,0.00463424]
[1674012170260,3.00476091,21348.0,21347.0,0.00463424]
[1674012170522,2.34140731,21348.0,21347.0,0.00463424]
[1674012170777,2.45342307,21348.0,21347.0,0.00463424]
[1674012171338,2.36242307,21348.0,21347.0,0.00463424]
[1674012171590,2.45342307,21348.0,21347.0,0.00463424]
[1674012172114,2.98730442,21348.0,21347.0,0.00463424]
[1674012172360,2.78428866,21348.0,21347.0,0.00463424]
[1674012172639,2.41590731,21348.0,21347.0,0.00463424]
[1674012172939,2.52792307,21348.0,21347.0,0.00463424]
[1674012173193,3.64178743,21348.0,21347.0,0.00463424]
[1674012173454,3.52977167,21348.0,21347.0,0.00463424]
[1674012173716,4.22818806,21348.0,21347.0,0.00463424]
[1674012174023,4.00387384,21348.0,21347.0,0.00463424]
[1674012174286,4.49225221,21348.0,21347.0,0.00463424]
[1674012174820,4.11585521,21348.0,21347.0,0.00463424]
[1674012175086,3.94761954,21348.0,21347.0,0.00463424]
[1674012175581,3.47351737,21348.0,21347.0,0.00463424]
[1674012175862,3.38251737,21348.0,21347.0,0.00463424]
[1674012176400,3.361536,21348.0,21347.0,0.00463424]
[1674012177512,3.36142266,21348.0,21347.0,0.00463424]
[1674012178330,3.38732267,21348.0,21347.0,0.00463424]
[1674012179992,3.49930404,21348.0,21347.0,0.00463424]
[1674012180651,3.19930404,21348.0,21347.0,0.00463424]
[1674012180877,3.38732267,21348.0,21347.0,0.00463424]
[1674012181310,3.19930404,21348.0,21347.0,0.00463424]
[1674012181524,3.66753971,21348.0,21347.0,0.00463424]
[1674012182413,3.55555834,21348.0,21347.0,0.00463424]
[1674012182624,4.02966051,21348.0,21347.0,0.00463424]
[1674012182838,3.93866051,21348.0,21347.0,0.00463424]
[1674012183061,4.16297473,21348.0,21347.0,0.00463424]
[1674012183378,4.25397473,21348.0,21347.0,0.00463424]
[1674012183529,4.08573906,21348.0,21347.0,0.00463424]
[1674012184042,3.53550909,21348.0,21347.0,0.00463424]
[1674012184296,4.06171339,21348.0,21347.0,0.00463424]
[1674012184835,4.39886714,21348.0,21347.0,0.00463424]
[1674012185099,4.39886714,21348.0,21346.0,0.00609745]
[1674012185100,0.15,21347.0,21346.0,0.00609745]
[1674012187778,0.32151,21340.0,21339.0,0.00410901]
[1674012188037,1.37341601,21340.0,21339.0,0.00410901]
[1674012188544,1.05190601,21340.0,21339.0,0.00410901]
[1674012189067,1.14290601,21340.0,21339.0,0.00410901]
[1674012189328,1.05190601,21340.0,21339.0,0.00410901]
[1674012189580,1.14290601,21340.0,21339.0,0.00410901]
[1674012190085,1.44226921,21340.0,21339.0,0.00410901]
[1674012190346,1.53326921,21340.0,21339.0,0.00410901]
[1674012190606,1.14290601,21340.0,21339.0,0.00410901]
[1674012190876,1.35190601,21340.0,21339.0,0.00410901]
[1674012191187,1.76441601,21340.0,21339.0,0.00410901]
[1674012191660,1.47291601,21340.0,21339.0,0.00410901]
[1674012191918,1.05190601,21340.0,21339.0,0.00410901]
[1674012192174,1.14290601,21340.0,21339.0,0.00410901]
[1674012192440,1.37341601,21340.0,21339.0,0.00410901]
[1674012192685,1.46441601,21340.0,21339.0,0.00410901]
[1674012192939,1.05190601,21340.0,21339.0,0.00410901]
[1674012193187,0.11470001,21340.0,21339.0,0.00410901]
[1674012193462,0.11470001,21340.0,21339.0,0.32561901]
[1674012195048,0.20470001,21340.0,21339.0,0.32561901]
[1674012195500,0.20476001,21340.0,21339.0,0.39981901]
[1674012196803,0.11476001,21340.0,21339.0,0.39981901]
[1674012197071,0.15276001,21340.0,21339.0,0.32561901]
[1674012198360,0.62136301,21340.0,21339.0,0.32561901]
[1674012198616,0.62136301,21340.0,21339.0,0.00410901]
[1674012199111,0.15276001,21340.0,21339.0,0.00410901]
[1674012199369,0.15276001,21340.0,21339.0,0.32561901]
[1674012200669,0.15270001,21340.0,21339.0,0.32561901]
[1674012201684,0.15270001,21340.0,21339.0,0.39991901]
[1674012205497,0.15270001,21340.0,21339.0,0.32561901]
[1674012208334,0.15270001,21340.0,21339.0,0.00410901]
[1674012208581,0.15270001,21340.0,21339.0,0.00401207]
[1674012208830,0.15270001,21340.0,21339.0,0.32552207]
[1674012209891,0.15270001,21340.0,21339.0,1.52799802]
[1674012210146,0.15270001,21340.0,21339.0,1.41177207]
[1674012211436,1e-08,21340.0,21339.0,2.31266907]
[1674012211701,1e-08,21340.0,21339.0,2.57150294]
[1674012212227,1e-08,21340.0,21339.0,2.52186907]
[1674012212481,1e-08,21340.0,21339.0,2.55755228]
[1674012212738,6e-05,21341.0,21339.0,2.55755228]
[1674012213027,6e-05,21341.0,21340.0,0.433731]
[1674012213263,6e-05,21341.0,21340.0,1.370937]
[1674012213524,6e-05,21341.0,21340.0,1.296937]
[1674012213781,6e-05,21341.0,21340.0,0.828334]
[1674012214046,0.00406,21341.0,21340.0,0.828334]
[1674012214393,6e-05,21341.0,21340.0,0.828334]
[1674012214578,0.00406,21341.0,21340.0,0.874334]
[1674012214843,6e-05,21341.0,21340.0,0.828334]
[1674012215095,0.00406,21341.0,21340.0,0.874334]
[1674012215843,0.00406,21341.0,21340.0,1.342937]
[1674012216094,0.00406,21341.0,21340.0,0.874334]
[1674012217651,0.00406,21341.0,21340.0,0.799834]
[1674012220461,0.00406,21341.0,21340.0,0.331231]
[1674012221829,0.004,21341.0,21340.0,0.046]
[1674012222334,0.004,21341.0,21340.0,0.331229]
[1674012226752,0.004,21341.0,21340.0,0.046]
[1674012227048,0.004,21341.0,21340.0,0.367616]
[1674012231452,0.004,21341.0,21340.0,0.836219]
[1674012236655,0.004,21341.0,21340.0,1.244822]
[1674012237710,0.004,21341.0,21340.0,1.354622]
[1674012242255,0.004,21341.0,21340.0,1.464422]
[1674012243040,0.004,21341.0,21340.0,0.307616]
[1674012243306,0.08137,21341.0,21339.0,0.1089]
[1674012244075,0.07737,21341.0,21339.0,0.1089]
[1674012244563,0.08637,21341.0,21339.0,0.1089]
[1674012245088,0.07737,21341.0,21339.0,0.1089]
[1674012245596,0.08637,21341.0,21339.0,0.1089]
[1674012245842,0.009,21341.0,21339.0,0.1089]
[1674012246093,0.009,21341.0,21339.0,0.16086377]
[1674012246341,0.009,21341.0,21340.0,0.321613]
[1674012246638,0.01,21341.0,21340.0,0.321613]
[1674012247375,0.468553,21343.0,21340.0,0.321613]
[1674012247636,0.01,21341.0,21339.0,0.62948777]
[1674012248182,0.01,21341.0,21340.0,0.321613]
[1674012248438,0.468553,21343.0,21340.0,0.321613]
[1674012248692,0.468553,21343.0,21339.0,0.62948777]
[1674012249249,0.468553,21343.0,21340.0,0.321613]
[1674012249509,0.468553,21343.0,21339.0,0.62948777]
[1674012249780,0.473553,21343.0,21339.0,0.62948777]
[1674012250033,0.468553,21343.0,21340.0,0.321613]
[1674012250290,0.513553,21343.0,21341.0,0.270093]
[1674012250559,0.468553,21343.0,21339.0,0.62377456]
[1674012250816,1.04206505,21343.0,21339.0,0.15515056]
[1674012251072,0.11205056,21342.0,21339.0,0.15515056]
[1674012251332,1.09309033,21343.0,21339.0,0.15515056]
[1674012251333,1.76567789,21343.0,21339.0,0.15515056]
[1674012251589,1.67367789,21343.0,21339.0,0.15515056]
[1674012251907,0.11205056,21342.0,21339.0,0.15515056]
[1674012252167,1.21012489,21343.0,21339.0,0.15515056]
[1674012252421,1.04204905,21343.0,21339.0,0.81450151]
[1674012252694,1.04204905,21343.0,21340.0,0.321609]
[1674012252962,1.04204905,21343.0,21339.0,0.81450151]
[1674012253289,1.39856149,21343.0,21339.0,0.15515056]
[1674012253533,1.39356149,21343.0,21340.0,0.321609]
[1674012253777,1.39356149,21343.0,21339.0,0.15515056]
[1674012254024,1.08205505,21343.0,21339.0,0.15515056]
[1674012254283,1.03705505,21343.0,21339.0,0.15515056]
[1674012254563,1.04205505,21343.0,21339.0,0.62377256]
[1674012254806,1.04211505,21343.0,21340.0,0.321609]
[1674012255057,1.04211505,21343.0,21339.0,0.62377256]
[1674012255815,1.03711505,21343.0,21339.0,0.62377256]
[1674012256056,1.08211505,21343.0,21339.0,0.62377256]
[1674012256327,1.03711505,21343.0,21340.0,0.321609]
[1674012256568,1.03711505,21343.0,21339.0,0.62377256]
[1674012257554,1.04211505,21343.0,21339.0,0.62377256]
[1674012258522,1.04198302,21343.0,21339.0,0.62377256]
[1674012259009,1.04198302,21343.0,21339.0,0.81449851]
[1674012259250,1.04198302,21343.0,21339.0,0.62377256]
[1674012259756,1.04192302,21343.0,21339.0,0.62377256]
[1674012261586,1.04192302,21343.0,21339.0,0.81449851]
[1674012261834,1.04192302,21343.0,21340.0,0.321609]
[1674012262112,1.04192302,21343.0,21341.0,0.321597]
[1674012262324,1.04192302,21343.0,21340.0,0.1087]
[1674012263065,1.03692302,21343.0,21340.0,0.1087]
[1674012263597,1.08192302,21343.0,21340.0,0.1087]
[1674012264093,1.24999886,21343.0,21340.0,0.1087]
[1674012264345,0.11205056,21342.0,21338.0,0.58670121]
[1674012264584,0.7486874,21342.0,21338.0,0.58670121]
[1674012264833,0.8986874,21342.0,21338.0,0.58670121]
[1674012265080,0.58061156,21342.0,21338.0,0.58670121]
[1674012265324,0.73061156,21342.0,21338.0,0.58670121]
[1674012265825,1.02007272,21342.0,21338.0,0.58671621]
[1674012266330,0.74060956,21342.0,21338.0,0.58671621]
[1674012266584,0.59060956,21342.0,21338.0,0.58671621]
[1674012267873,0.58066956,21342.0,21338.0,0.58671621]
[1674012268934,0.58566956,21342.0,21338.0,0.58671621]
[1674012269189,0.58066956,21342.0,21338.0,0.58671621]
[1674012269450,0.59066956,21342.0,21338.0,0.58671621]
[1674012269722,0.58066956,21342.0,21338.0,0.58671621]
[1674012269973,0.59066956,21342.0,21339.0,0.321609]
[1674012270192,0.59066956,21342.0,21338.0,0.58671621]
[1674012270495,0.12211056,21342.0,21338.0,0.58671621]
[1674012270757,0.01006,21342.0,21339.0,0.05352633]
[1674012271537,0.2187,21340.0,21338.0,0.00827321]
[1674012271801,0.54305956,21339.0,21338.0,0.00827321]
[1674012272068,1.63030956,21339.0,21338.0,0.00827321]
[1674012272372,1.6483854,21339.0,21338.0,0.00731086]
[1674012272600,1.48030956,21339.0,21338.0,0.00731086]
[1674012273114,1.03025,21339.0,21338.0,0.00731086]
[1674012273377,0.561625,21339.0,21338.0,0.00731086]
[1674012273889,0.093,21339.0,21338.0,0.00731086]
[1674012274426,0.093,21339.0,21338.0,0.32891986]
[1674012274683,0.093,21339.0,21338.0,0.00731086]
[1674012274946,1.03031,21339.0,21338.0,0.00731086]
[1674012276307,1.36406666,21339.0,21338.0,0.00731086]
[1674012276538,1.68567566,21339.0,21338.0,0.00731086]
[1674012276776,1.83567566,21339.0,21338.0,0.00731086]
[1674012277026,2.3037515,21339.0,21338.0,0.00731086]
[1674012277277,2.13567566,21339.0,21338.0,0.00731086]
[1674012278059,2.3037515,21339.0,21338.0,0.00731086]
[1674012278325,1.14236056,21339.0,21338.0,0.00731086]
[1674012278586,1.03031,21339.0,21338.0,0.00731086]
[1674012279615,1.46396956,21339.0,21338.0,0.00731086]
[1674012280206,1.03025,21339.0,21338.0,0.00723039]
[1674012281933,1.03025,21339.0,21338.0,0.01673408]
[1674012283238,1.91390956,21339.0,21338.0,0.01673408]
[1674012283494,2.07973484,21339.0,21338.0,0.01673408]
[1674012283751,2.66695266,21339.0,21338.0,0.01673408]
[1674012284303,2.44285154,21339.0,21338.0,0.01673408]
[1674012284546,2.19188368,21339.0,21338.0,0.01673408]
[1674012284800,2.07973484,21339.0,21338.0,0.01673408]
[1674012285278,3.04823351,21339.0,21338.0,0.01673408]
[1674012285533,4.01571007,21339.0,21338.0,3.408e-05]
[1674012285830,3.93560541,21339.0,21338.0,3.408e-05]
[1674012286085,4.27195636,21339.0,21338.0,3.408e-05]
[1674012286344,3.93560541,21339.0,21338.0,3.408e-05]
[1674012287962,4.02860541,21339.0,21338.0,3.408e-05]
[1674012289014,4.26294541,21339.0,21338.0,3.408e-05]
[1674012289264,4.02900541,21339.0,21338.0,3.408e-05]
[1674012290560,5.34610541,21339.0,21338.0,3.408e-05]
[1674012290830,5.6820377,21339.0,21338.0,3.408e-05]
[1674012291374,6.52339771,21339.0,21338.0,3.408e-05]
[1674012291621,5.95759771,21339.0,21338.0,3.408e-05]
[1674012292465,5.52866542,21339.0,21338.0,3.408e-05]
[1674012292723,5.42735992,21339.0,21338.0,3.408e-05]
[1674012292983,5.05456325,21339.0,21338.0,3.408e-05]
[1674012293328,5.14756325,21339.0,21338.0,3.408e-05]
[1674012293832,4.59376325,21339.0,21338.0,3.408e-05]
[1674012294598,4.87348729,21339.0,21338.0,3.408e-05]
[1674012294853,0.15,21338.0,21326.0,0.781294]
[1674012295115,0.0748,21333.0,21330.0,0.00097387]
[1674012295376,1.259167,21332.0,21327.0,0.0098038]
[1674012295625,1.30936242,21332.0,21327.0,0.0098038]
[1674012295913,0.937558,21332.0,21327.0,0.0098038]
[1674012296138,0.937558,21332.0,21329.0,0.00889255]
[1674012297392,0.937558,21332.0,21329.0,0.00883255]
[1674012297659,1.030558,21332.0,21329.0,0.00847255]
[1674012298171,1.030618,21332.0,21329.0,0.00847255]
[1674012298689,0.937618,21332.0,21329.0,0.00847255]
[1674012298939,1.030618,21332.0,21329.0,0.00847255]
[1674012299213,0.937618,21332.0,21329.0,0.00847255]
[1674012299462,1.030618,21332.0,21329.0,0.00847255]
[1674012299838,0.937618,21332.0,21329.0,0.00847255]
[1674012299981,0.09306,21332.0,21329.0,0.67974674]
[1674012300241,0.09306,21332.0,21330.0,0.321609]
[1674012300495,0.09306,21332.0,21329.0,0.48902079]
[1674012300739,0.09306,21332.0,21330.0,0.321609]
[1674012300995,0.09306,21332.0,21329.0,0.48902079]
[1674012301239,0.09306,21332.0,21330.0,0.321609]
[1674012301488,0.09306,21332.0,21329.0,0.48902079]
[1674012301983,0.09306,21332.0,21329.0,0.48902579]
[1674012302228,0.09306,21332.0,21330.0,0.321609]
[1674012302480,0.09306,21332.0,21329.0,0.02018079]
[1674012302970,0.09306,21332.0,21330.0,0.321609]
[1674012303476,0.09306,21332.0,21329.0,0.13008079]
[1674012303741,0.09306,21332.0,21330.0,0.321609]
[1674012304006,6e-05,21332.0,21329.0,0.13008079]
[1674012304256,0.09306,21332.0,21330.0,0.321609]
[1674012304510,0.09306,21332.0,21329.0,0.13008079]
[1674012304765,0.09306,21332.0,21330.0,0.321609]
[1674012305024,6e-05,21333.0,21330.0,0.468822]
[1674012305274,0.093,21332.0,21331.0,0.321609]
[1674012305536,6e-05,21333.0,21331.0,1.26923413]
[1674012305788,6e-05,21333.0,21332.0,0.31159999]
[1674012306030,6e-05,21333.0,21332.0,0.63320899]
[1674012307587,0.01006,21333.0,21332.0,0.63320899]
[1674012307866,0.01006,21333.0,21332.0,0.41460899]
[1674012309413,0.01006,21333.0,21332.0,0.88338799]
[1674012309955,0.01006,21333.0,21332.0,0.95748799]
[1674012310738,0.01006,21333.0,21332.0,0.48902895]
[1674012310986,0.01006,21333.0,21332.0,0.48870899]
[1674012311767,6e-05,21333.0,21332.0,0.48870899]
[1674012312270,0.01006,21333.0,21332.0,0.41460899]
[1674012313051,6e-05,21333.0,21332.0,0.09299999]
[1674012313306,0.08243,21333.0,21332.0,0.09299999]
[1674012313568,0.546187,21333.0,21332.0,0.09299999]
[1674012313860,0.638187,21333.0,21332.0,0.09299999]
[1674012314066,0.546187,21333.0,21332.0,0.09299999]
[1674012314336,0.639187,21333.0,21332.0,0.09299999]
[1674012314603,1.24825205,21333.0,21332.0,0.09299999]
[1674012314859,1.014944,21333.0,21332.0,0.09299999]
[1674012315181,1.014884,21333.0,21332.0,0.09299999]
[1674012315888,1.107884,21333.0,21332.0,0.09299999]
[1674012317173,1.014884,21333.0,21332.0,0.09299999]
[1674012317428,1.107884,21333.0,21332.0,0.09299999]
[1674012317718,1.407884,21333.0,21332.0,0.09299999]
[1674012317961,1.96895001,21333.0,21332.0,0.09299999]
[1674012318475,1.729493,21333.0,21332.0,0.09299999]
[1674012318722,1.74838521,21333.0,21332.0,0.09299999]
[1674012318971,2.38102794,21333.0,21332.0,0.09299999]
[1674012319219,3.44737884,21333.0,21332.0,0.09299999]
[1674012319470,3.35437884,21333.0,21332.0,0.09299999]
[1674012319732,4.21892178,21333.0,21332.0,0.09299999]
[1674012320021,4.35029242,21333.0,21332.0,0.09299999]
[1674012320271,4.44329242,21333.0,21332.0,0.09299999]
[1674012320528,4.35029242,21333.0,21332.0,0.09299999]
[1674012320795,4.21892178,21333.0,21332.0,0.09299999]
[1674012321059,4.21892178,21333.0,21332.0,0.09290668]
[1674012321323,3.59743646,21333.0,21332.0,0.09290668]
[1674012321830,3.48598283,21333.0,21332.0,0.09290668]
[1674012322083,3.22470594,21333.0,21332.0,0.09290668]
[1674012322333,3.31770594,21333.0,21332.0,0.09290668]
[1674012322588,3.12023477,21333.0,21332.0,0.09290668]
[1674012322834,3.00032761,21333.0,21332.0,0.09290668]
[1674012323357,2.77590634,21333.0,21332.0,0.09290668]
[1674012323845,2.88812019,21333.0,21332.0,0.09290668]
[1674012324098,2.89662019,21333.0,21332.0,0.09290668]
[1674012324347,2.78440634,21333.0,21332.0,0.09290668]
[1674012324623,2.72830707,21333.0,21332.0,0.09290668]
[1674012324877,2.78440634,21333.0,21332.0,0.09290668]
[1674012325633,3.00882761,21333.0,21332.0,0.09290668]
[1674012325883,2.89663111,21333.0,21332.0,0.09290668]
[1674012327155,3.00882761,21333.0,21332.0,0.09290668]
[1674012327411,2.78440634,21333.0,21332.0,0.09290668]
[1674012328922,3.00882761,21333.0,21332.0,0.09290668]
[1674012329468,2.78440634,21333.0,21332.0,0.09290668]
[1674012329972,2.78430402,21333.0,21332.0,0.09290668]
[1674012330481,3.00872529,21333.0,21332.0,0.09290668]
[1674012331004,2.59649979,21333.0,21332.0,0.09290668]
[1674012331268,2.42817643,21333.0,21332.0,0.09290668]
[1674012331525,2.72817643,21333.0,21332.0,0.09290668]
[1674012332028,2.89649979,21333.0,21332.0,0.09290668]
[1674012332540,3.00872529,21333.0,21332.0,0.09290668]
[1674012332801,2.48430402,21333.0,21332.0,0.09290668]
[1674012333068,1.43984698,21333.0,21332.0,0.09290668]
[1674012333564,1.34684698,21333.0,21332.0,0.09290668]
[1674012335042,1.43184698,21333.0,21332.0,0.09390668]
[1674012335334,1.34684698,21333.0,21332.0,0.09290668]
[1674012335584,1.25534698,21333.0,21332.0,0.09290668]
[1674012335837,1.25534698,21333.0,21332.0,0.09390668]
[1674012336088,1.25534698,21333.0,21332.0,0.09290668]
[1674012336341,1.26384698,21333.0,21332.0,0.09390668]
[1674012336596,1.34884698,21333.0,21332.0,0.09290668]
[1674012336851,1.34884698,21333.0,21332.0,0.09390668]
[1674012337103,1.43384698,21333.0,21332.0,0.09390668]
[1674012339380,1.54603531,21333.0,21332.0,0.09390668]
[1674012339652,1.43384698,21333.0,21332.0,0.09390668]
[1674012339907,1.54603531,21333.0,21332.0,0.09390668]
[1674012340878,1.84603531,21333.0,21332.0,0.09390668]
[1674012341380,1.43384698,21333.0,21332.0,0.09390668]
[1674012344934,0.96508998,21333.0,21332.0,0.09390668]
[1674012345187,0.555757,21333.0,21332.0,0.09390668]
[1674012345442,0.1785,21333.0,21332.0,0.09390668]
[1674012345752,0.17,21333.0,21332.0,0.18027123]
[1674012345973,0.17,21333.0,21332.0,0.64905023]
[1674012346201,0.17,21333.0,21332.0,0.97065923]
[1674012346715,0.17,21333.0,21332.0,1.81030099]
[1674012347985,0.17,21333.0,21332.0,1.43943823]
[1674012348528,0.17,21333.0,21332.0,1.58943823]
[1674012351090,6e-05,21335.0,21333.0,0.0741]
[1674012351359,6e-05,21335.0,21334.0,0.0742]
[1674012351658,6e-05,21335.0,21334.0,0.395809]
[1674012352198,6e-05,21335.0,21334.0,0.40761927]
[1674012352475,6e-05,21335.0,21334.0,1.34508927]
[1674012352735,6e-05,21335.0,21334.0,1.49508927]
[1674012353017,0.00806,21335.0,21334.0,1.35808927]
[1674012354873,0.00806,21335.0,21334.0,1.94782]
[1674012355161,0.00806,21335.0,21334.0,2.2477832]
[1674012355393,1e-08,21335.0,21334.0,2.23629287]
[1674012357870,1e-08,21335.0,21334.0,2.52049287]
[1674012358127,1e-08,21335.0,21334.0,3.12049287]
[1674012359140,0.00969838,21342.0,21334.0,3.10749287]
[1674012359393,0.00969838,21342.0,21340.0,0.0748]
[1674012359635,0.00969838,21342.0,21341.0,0.19072595]
[1674012359880,0.00969838,21342.0,21341.0,0.26552595]
[1674012360121,0.00969838,21342.0,21341.0,0.0748]
[1674012360376,0.00969838,21342.0,21341.0,0.26552595]
[1674012360640,0.00969838,21342.0,21341.0,1.05570495]
[1674012361401,0.00969838,21342.0,21341.0,0.864979]
[1674012362148,0.00969838,21342.0,21341.0,0.957979]
[1674012362387,0.00969838,21342.0,21341.0,0.864979]
[1674012362628,0.00969838,21342.0,21341.0,0.926979]
[1674012362869,0.00969838,21342.0,21341.0,0.834979]
[1674012363106,0.00969838,21342.0,21341.0,0.927979]
[1674012363589,0.00969838,21342.0,21341.0,0.459398]
[1674012364433,0.00969838,21342.0,21341.0,0.927979]
[1674012364671,0.00969838,21342.0,21341.0,0.834979]
[1674012365155,0.00969838,21342.0,21341.0,0.927979]
[1674012365393,0.00969838,21342.0,21341.0,0.92829883]
[1674012365876,0.00969838,21342.0,21341.0,1.39687983]
[1674012366113,0.00969838,21342.0,21341.0,1.47167983]
[1674012367333,0.00969838,21342.0,21341.0,1.37867983]
[1674012367575,0.00969838,21342.0,21341.0,1.47067983]
[1674012369996,0.00969838,21342.0,21341.0,1.35107983]
[1674012370252,0.00969838,21342.0,21341.0,1.42587983]
[1674012371581,0.08706838,21342.0,21341.0,0.413598]
[1674012371856,0.09556838,21342.0,21341.0,0.092]
[1674012372117,1.03268638,21342.0,21341.0,0.092]
[1674012372371,1.35429538,21342.0,21341.0,0.092]
[1674012372905,1.35429538,21342.0,21337.0,0.00997183]
[1674012373158,1.04068638,21342.0,21341.0,0.007]
[1674012373413,0.0085,21341.0,21337.0,0.00997183]
[1674012373687,0.468604,21340.0,21337.0,0.00997183]
[1674012374233,0.468604,21340.0,21337.0,0.06897183]
[1674012374500,0.1585,21339.0,21337.0,0.05995716]
[1674012374778,1.258903,21338.0,21337.0,0.05995716]
[1674012375030,1.258903,21338.0,21335.0,0.01041687]
[1674012375031,1.267403,21338.0,21335.0,0.01041687]
[1674012375323,0.937294,21338.0,21337.0,0.061]
[1674012375601,0.0085,21337.0,21334.0,0.00099554]
[1674012375865,0.477169,21337.0,21334.0,0.00099554]
[1674012376421,0.477169,21337.0,21335.0,0.007]
[1674012376750,0.487169,21337.0,21334.0,0.00699554]
[1674012377527,0.487169,21337.0,21335.0,0.321609]
[1674012377781,0.487169,21337.0,21334.0,0.00699554]
[1674012378039,0.0185,21337.0,21333.0,0.20224696]
[1674012378301,0.0185,21337.0,21334.0,0.0748]
[1674012378560,0.0185,21337.0,21335.0,0.321609]
[1674012378820,0.0185,21337.0,21334.0,0.0748]
[1674012379096,0.0185,21337.0,21335.0,0.321609]
[1674012379379,0.0185,21337.0,21334.0,0.0748]
[1674012379622,0.0185,21337.0,21335.0,0.2967]
[1674012379933,0.0185,21337.0,21336.0,0.296686]
[1674012380194,0.89298203,21337.0,21336.0,0.296686]
[1674012380499,0.90898203,21337.0,21335.0,0.006]
[1674012380780,1.51381373,21337.0,21335.0,0.006]
[1674012381049,0.396428,21336.0,21335.0,0.006]
[1674012381318,1.64231,21336.0,21332.0,0.10323403]
[1674012381572,0.0085,21335.0,21332.0,0.10323403]
[1674012381832,0.945944,21335.0,21332.0,0.10323403]
[1674012382090,0.945944,21335.0,21332.0,0.07823403]
[1674012382342,0.945944,21335.0,21332.0,0.07727158]
[1674012382602,0.945944,21335.0,21332.0,0.08427158]
[1674012382603,1.095944,21335.0,21332.0,0.08427158]
[1674012382854,1.095944,21335.0,21332.0,0.07727158]
[1674012383124,1.095944,21335.0,21332.0,0.08427158]
[1674012383125,0.49572663,21334.0,21332.0,0.08427158]
[1674012383402,0.96447063,21334.0,21332.0,0.07727158]
[1674012383666,0.0085,21333.0,21332.0,0.08327158]
[1674012383924,0.0085,21333.0,21332.0,0.07727158]
[1674012384443,0.0085,21333.0,21332.0,0.37401958]
[1674012384716,0.0085,21333.0,21332.0,0.38101958]
[1674012384982,0.0085,21333.0,21332.0,0.07727158]
[1674012385235,0.0245,21333.0,21332.0,0.08327158]
[1674012385536,0.016,21333.0,21332.0,0.08327158]
[1674012385772,0.016,21333.0,21332.0,0.35502258]
[1674012386025,0.016,21333.0,21332.0,0.05827158]
[1674012387390,1.039384,21333.0,21332.0,0.05827158]
[1674012388466,0.962014,21333.0,21332.0,0.05827158]
[1674012389015,0.493257,21333.0,21332.0,0.05827158]
[1674012389590,0.0245,21333.0,21332.0,0.35502258]
[1674012389865,0.016,21333.0,21332.0,0.35502258]
[1674012391379,0.016,21333.0,21332.0,0.05827158]
[1674012392176,0.016,21333.0,21332.0,0.35502258]
[1674012394576,0.016,21333.0,21332.0,0.05827158]
[1674012398478,0.016,21333.0,21332.0,0.35502258]
[1674012400528,0.016,21333.0,21332.0,0.05827158]
[1674012400782,0.484757,21333.0,21332.0,0.05827158]
[1674012402057,0.016,21333.0,21332.0,0.05827158]
[1674012402324,0.09337,21333.0,21332.0,0.05827158]
[1674012402669,0.562127,21333.0,21332.0,0.05827158]
[1674012405656,0.570627,21333.0,21332.0,0.05827158]
[1674012406726,0.10187,21333.0,21332.0,0.05827158]
[1674012406968,0.570627,21333.0,21332.0,0.05827158]
[1674012408017,0.570627,21333.0,21332.0,0.0153649]